bitfinex/quotes_SOLUSD_20230101
["timestamp","ask_amount","ask_price","bid_price","bid_amount"]
[1672557619557,40.0,9.7492,9.7453,16.319865]
[1672557619772,40.0,9.749,9.7453,16.319865]
[1672557620090,40.0,9.7488,9.7453,16.319865]
[1672557620285,97.02,9.7487,9.7453,16.319865]
[1672557620497,40.0,9.7486,9.7453,16.319865]
[1672557620707,97.02,9.7485,9.7453,16.319865]
[1672557620914,40.0,9.7484,9.7453,16.319865]
[1672557621143,40.0,9.7482,9.7453,16.319865]
[1672557621343,97.02,9.7481,9.7453,16.319865]
[1672557621560,40.0,9.748,9.7453,16.319865]
[1672557621774,40.0,9.7478,9.7453,16.319865]
[1672557621975,40.0,9.7476,9.7453,16.319865]
[1672557622195,97.03,9.7475,9.7453,16.319865]
[1672557622396,40.0,9.7474,9.7453,16.319865]
[1672557622608,40.0,9.7472,9.7453,16.319865]
[1672557622836,40.0,9.747,9.7453,16.319865]
[1672557623041,20.0,9.7469,9.7453,16.319865]
[1672557623241,40.0,9.7468,9.7453,16.319865]
[1672557623452,40.0,9.7466,9.7453,16.319865]
[1672557623675,20.0,9.7465,9.7453,16.319865]
[1672557623879,40.0,9.7464,9.7453,16.319865]
[1672557624508,40.0,9.7462,9.7453,16.319865]
[1672557625042,40.0,9.746,9.7453,16.319865]
[1672557625248,20.0,9.7459,9.7453,16.319865]
[1672557627041,40.0,9.749,9.7453,16.319865]
[1672557627042,20.0,9.7469,9.7453,16.319865]
[1672557627258,20.0,9.7471,9.7453,16.319865]
[1672557627656,40.0,9.747,9.7453,16.319865]
[1672557627863,20.0,9.7469,9.7453,16.319865]
[1672557628184,40.0,9.7468,9.7453,16.319865]
[1672557628613,40.0,9.7466,9.7453,16.319865]
[1672557628824,20.0,9.7465,9.7453,16.319865]
[1672557629552,33.99042601,9.7465,9.7453,16.319865]
[1672557629760,40.0,9.7464,9.7453,16.319865]
[1672557630086,33.99042601,9.7463,9.7453,16.319865]
[1672557630292,40.0,9.7462,9.7453,16.319865]
[1672557630512,20.0,9.7461,9.7453,16.319865]
[1672557630707,33.99042601,9.7461,9.7453,16.319865]
[1672557631335,20.0,9.7461,9.7453,16.319865]
[1672557631545,13.99042601,9.7475,9.7453,16.319865]
[1672557631766,40.0,9.7473,9.7453,16.319865]
[1672557631976,20.0,9.7472,9.7453,16.319865]
[1672557632292,40.0,9.7471,9.7453,16.319865]
[1672557632613,33.99042601,9.747,9.7453,16.319865]
[1672557633013,53.99042601,9.7469,9.7453,0.009865]
[1672557633222,53.99042601,9.7469,9.7442,8.4279318]
[1672557633223,40.0,9.7452,9.7362,163.3332]
[1672557633429,40.0,9.7452,9.7363,23.3432]
[1672557633430,97.05,9.7451,9.7363,23.3432]
[1672557633661,120.6183,9.7451,9.7363,23.3432]
[1672557633873,13.99042601,9.745,9.7363,23.3432]
[1672557634094,97.05,9.7449,9.7363,23.3432]
[1672557634312,97.05,9.7449,9.7363,18.3432]
[1672557634819,120.6183,9.7449,9.7363,18.3432]
[1672557635444,24.5999,9.7448,9.7363,18.3432]
[1672557635669,97.05,9.7447,9.7363,18.3432]
[1672557636705,97.05,9.7447,9.7364,40.0]
[1672557638389,97.05,9.7447,9.7363,18.3432]
[1672557638600,20.0,9.7447,9.7363,18.3432]
[1672557639252,77.05,9.7446,9.7363,18.3432]
[1672557639556,20.0,9.7445,9.7366,40.0]
[1672557639770,20.0,9.7445,9.7368,307.9]
[1672557639976,24.5999,9.7448,9.737,307.9]
[1672557639977,20.0,9.7447,9.737,307.9]
[1672557640194,20.0,9.7447,9.7373,40.0]
[1672557640403,20.0,9.7447,9.7376,40.0]
[1672557642382,20.0,9.7447,9.7379,40.0]
[1672557648288,24.5999,9.7448,9.7381,347.9]
[1672557648498,0.14701468,15.773,9.7383,307.9]
[1672557648499,40.0,9.7549,9.7383,307.9]
[1672557648718,40.0,9.7549,9.7385,307.9]
[1672557648934,40.0,9.7549,9.7384,117.1]
[1672557648935,40.0,9.7549,9.7388,40.0]
[1672557649137,40.0,9.7547,9.739,307.9]
[1672557649464,40.0,9.7545,9.7393,40.0]
[1672557649665,40.0,9.7543,9.7395,307.9]
[1672557649867,76.98,9.7542,9.7398,40.0]
[1672557650074,40.0,9.7541,9.7401,40.0]
[1672557650286,40.0,9.7539,9.7404,40.0]
[1672557650496,76.98,9.7538,9.7406,307.9]
[1672557650706,40.0,9.7543,9.7408,307.9]
[1672557650707,40.0,9.7541,9.7408,307.9]
[1672557650918,40.0,9.7539,9.7411,40.0]
[1672557651127,76.98,9.7538,9.7413,307.9]
[1672557651346,40.0,9.7537,9.7415,347.9]
[1672557651544,76.98,9.7536,9.7417,307.9]
[1672557651767,40.0,9.7535,9.742,40.0]
[1672557651974,40.0,9.7535,9.7422,307.9]
[1672557652188,40.0,9.7535,9.742,40.0]
[1672557652189,40.0,9.7533,9.7424,307.9]
[1672557652394,76.98,9.7532,9.7426,307.9]
[1672557652617,76.98,9.7532,9.7429,40.0]
[1672557652618,40.0,9.7531,9.7429,40.0]
[1672557652826,76.99,9.753,9.7429,40.0]
[1672557654698,76.98,9.7532,9.7429,40.0]
[1672557654910,76.97,9.7548,9.7431,307.9]
[1672557655224,76.98,9.754,9.7434,40.0]
[1672557655444,76.98,9.7542,9.7436,307.9]
[1672557655646,264.0,9.753,9.7438,307.9]
[1672557655858,264.0,9.753,9.7437,117.06]
[1672557655859,264.0,9.753,9.744,347.9]
[1672557656190,264.0,9.753,9.7441,40.0]
[1672557658161,264.0,9.753,9.7444,40.0]
[1672557658368,264.0,9.753,9.7447,40.0]
[1672557658598,264.0,9.753,9.7449,307.9]
[1672557658809,264.0,9.753,9.7451,307.9]
[1672557659001,264.0,9.753,9.7452,40.0]
[1672557662379,264.0,9.753,9.7455,40.0]
[1672557667203,264.0,9.753,9.7455,347.9]
[1672557667630,264.0,9.753,9.7458,40.0]
[1672557671515,75.94918971,9.766,9.746,307.9]
[1672557671726,394.7,9.774,9.7463,40.0]
[1672557671727,76.89,9.7645,9.7463,40.0]
[1672557671937,20.0,9.7644,9.7466,40.0]
[1672557672155,40.0,9.7642,9.7468,307.9]
[1672557672462,76.9,9.7643,9.747,347.9]
[1672557672463,40.0,9.764,9.747,347.9]
[1672557672676,96.9,9.7641,9.7473,40.0]
[1672557672677,96.9,9.7639,9.7473,40.0]
[1672557672887,90.89042601,9.7639,9.7476,40.0]
[1672557673217,13.99042601,9.7638,9.7478,307.9]
[1672557673420,75.94918971,9.768,9.7477,97.03]
[1672557673421,76.9,9.7637,9.748,307.9]
[1672557673635,76.85,9.7697,9.7483,40.0]
[1672557673842,13.59080487,9.7656,9.7485,307.9]
[1672557674054,76.89,9.7655,9.7487,307.9]
[1672557674257,76.89,9.7655,9.749,40.0]
[1672557674580,13.59080487,9.7654,9.7493,40.0]
[1672557674789,76.89,9.7653,9.7495,307.9]
[1672557674996,76.89,9.7653,9.7497,307.9]
[1672557675194,20.0,9.7652,9.75,40.0]
[1672557675401,76.89,9.7651,9.7502,307.9]
[1672557675626,20.0,9.765,9.7505,40.0]
[1672557675950,76.89,9.7649,9.7508,40.0]
[1672557676258,20.0,9.7648,9.7511,40.0]
[1672557676469,40.0,9.7646,9.7513,307.9]
[1672557676672,40.0,9.7646,9.7512,77.0]
[1672557676673,96.89,9.7645,9.7514,77.0]
[1672557676889,40.0,9.7644,9.7512,167.6941]
[1672557677083,96.9,9.7643,9.7512,167.6941]
[1672557677291,40.0,9.7642,9.7514,40.0]
[1672557677507,96.9,9.7641,9.7514,40.0]
[1672557677823,40.0,9.764,9.7514,40.0]
[1672557678033,40.0,9.7638,9.7516,307.9]
[1672557678355,76.9,9.7637,9.7517,40.0]
[1672557678558,100.9241,9.7637,9.7518,307.9]
[1672557678768,100.9241,9.7637,9.7519,40.0]
[1672557679210,24.0241,9.7636,9.7522,40.0]
[1672557679422,76.9,9.7635,9.7522,40.0]
[1672557679846,24.0241,9.7634,9.7525,40.0]
[1672557680061,116.9,9.7633,9.7525,40.0]
[1672557680268,76.9,9.7633,9.7525,40.0]
[1672557680478,76.9,9.7633,9.7528,40.0]
[1672557681098,22.9221,9.7632,9.7531,40.0]
[1672557681314,76.91,9.7631,9.7531,40.0]
[1672557681857,99.8321,9.7631,9.7534,40.0]
[1672557682474,40.0,9.763,9.7536,40.0]
[1672557682790,76.91,9.7629,9.7536,40.0]
[1672557683000,40.0,9.7628,9.7538,40.0]
[1672557683210,76.91,9.7627,9.7538,40.0]
[1672557683634,76.91,9.7627,9.754,40.0]
[1672557684039,76.91,9.7627,9.7539,331.2089]
[1672557684251,76.91,9.7627,9.754,23.8972]
[1672557684688,40.0,9.7626,9.754,23.8972]
[1672557684899,40.0,9.7624,9.754,23.8972]
[1672557685091,76.91,9.7623,9.754,23.8972]
[1672557685513,76.91,9.7623,9.7541,23.8972]
[1672557686475,76.91,9.7623,9.7543,40.0]
[1672557687098,76.91,9.7623,9.7544,23.8972]
[1672557687314,40.0,9.7626,9.7544,23.8972]
[1672557687526,76.91,9.7625,9.7544,23.8972]
[1672557687720,40.0,9.7626,9.7545,24.4822]
[1672557687933,76.91,9.7625,9.7545,24.4822]
[1672557688140,40.0,9.7624,9.7545,24.4822]
[1672557688352,40.0,9.7622,9.7546,24.4822]
[1672557688576,40.0,9.762,9.7546,24.4822]
[1672557688778,40.0,9.7618,9.7546,24.4822]
[1672557688991,76.92,9.7617,9.7547,24.4822]
[1672557689209,40.0,9.7616,9.7547,24.4822]
[1672557689529,40.0,9.7614,9.7547,24.4822]
[1672557689839,40.0,9.7612,9.7547,24.4822]
[1672557690054,40.0,9.761,9.7547,24.4822]
[1672557690586,40.0,9.7608,9.7547,24.4822]
[1672557692169,40.0,9.761,9.7547,24.4822]
[1672557692356,40.0,9.7614,9.7547,24.4822]
[1672557693212,76.92,9.7617,9.7547,24.4822]
[1672557693534,271.77242448,9.7748,9.7547,24.4822]
[1672557693535,40.0,9.7628,9.7547,24.4822]
[1672557693743,76.91,9.7625,9.7547,24.4822]
[1672557694683,40.0,9.7628,9.7547,24.4822]
[1672557694897,40.0,9.7626,9.7547,24.4822]
[1672557697734,76.91,9.7627,9.7547,24.4822]
[1672557697940,40.0,9.7628,9.7547,24.4822]
[1672557698174,76.91,9.7627,9.7547,24.4822]
[1672557698474,40.0,9.7626,9.7547,24.4822]
[1672557698787,40.0,9.7624,9.7547,24.4822]
[1672557699100,40.0,9.7622,9.7547,24.4822]
[1672557699414,40.0,9.762,9.7547,24.4822]
[1672557699628,40.0,9.7618,9.7547,24.4822]
[1672557699821,40.0,9.7616,9.7547,24.4822]
[1672557701494,40.0,9.7618,9.7547,24.4822]
[1672557701709,40.0,9.7616,9.7547,24.4822]
[1672557701919,76.92,9.7615,9.7547,24.4822]
[1672557702130,40.0,9.7614,9.7547,24.4822]
[1672557702461,40.0,9.7612,9.7547,24.4822]
[1672557702657,40.0,9.761,9.7547,24.4822]
[1672557702868,40.0,9.7612,9.7547,24.4822]
[1672557703081,76.92,9.7615,9.7547,24.4822]
[1672557703291,76.92,9.7617,9.7547,24.4822]
[1672557703713,76.92,9.7619,9.7547,24.4822]
[1672557703939,40.0,9.762,9.7547,24.4822]
[1672557704145,76.92,9.7619,9.7547,24.4822]
[1672557704360,40.0,9.7618,9.7547,24.4822]
[1672557704563,40.0,9.7616,9.7547,24.4822]
[1672557704760,40.0,9.7636,9.7547,24.4822]
[1672557704977,76.9,9.7635,9.7547,24.4822]
[1672557705307,76.91,9.7629,9.7547,24.4822]
[1672557705515,40.0,9.7628,9.7547,24.4822]
[1672557705725,40.0,9.7626,9.7547,24.4822]
[1672557706046,40.0,9.7624,9.7547,24.4822]
[1672557706769,40.0,9.763,9.7547,24.4822]
[1672557707621,76.9,9.7633,9.7547,24.4822]
[1672557707815,76.9,9.7635,9.7547,24.4822]
[1672557709620,40.0,9.7629,9.7547,24.4822]
[1672557709805,40.0,9.7627,9.7547,24.4822]
[1672557710023,40.0,9.7625,9.7547,24.4822]
[1672557710232,76.91,9.7626,9.7547,24.4822]
[1672557710460,40.0,9.7625,9.7547,24.4822]
[1672557710768,76.91,9.7626,9.7547,24.4822]
[1672557710980,76.91,9.7626,9.7542,40.0]
[1672557710981,76.91,9.763,9.7548,24.9977]
[1672557711511,76.91,9.763,9.7549,40.0]
[1672557711929,76.9,9.7637,9.7549,40.0]
[1672557712124,40.0,9.7657,9.7549,40.0]
[1672557712125,76.91,9.763,9.7549,40.0]
[1672557712660,76.9,9.7637,9.7549,40.0]
[1672557713289,76.9,9.7637,9.7549,64.0632]
[1672557715071,76.9,9.7637,9.7551,40.0]
[1672557715708,76.9,9.7637,9.755,24.0632]
[1672557715922,76.9,9.7637,9.7552,40.0]
[1672557717078,76.9,9.7637,9.7552,64.0623]
[1672557717290,76.9,9.7637,9.7553,40.0]
[1672557717821,76.9,9.7637,9.7552,24.0623]
[1672557719083,40.0,9.763,9.7552,24.0623]
[1672557719498,40.0,9.763,9.7553,23.0245]
[1672557719914,40.0,9.7636,9.7553,23.0245]
[1672557720132,40.0,9.7629,9.7553,23.0245]
[1672557720340,40.0,9.7627,9.7553,23.0245]
[1672557720551,76.91,9.7626,9.7553,23.0245]
[1672557720762,40.0,9.7625,9.7553,23.0245]
[1672557720974,40.0,9.7623,9.7553,23.0245]
[1672557723711,76.91,9.7622,9.7553,23.0245]
[1672557723919,40.0,9.7621,9.7553,23.0245]
[1672557725802,40.0,9.7619,9.7553,23.0245]
[1672557727393,40.0,9.7617,9.7553,23.0245]
[1672557745887,55.5165637,9.7616,9.7553,23.0245]
[1672557746093,76.92,9.7615,9.7553,23.0245]
[1672557746294,40.0,9.7614,9.7553,23.0245]
[1672557746505,40.0,9.7612,9.7553,23.0245]
[1672557746718,76.92,9.7611,9.7553,23.0245]
[1672557746939,40.0,9.761,9.7553,23.0245]
[1672557747141,40.0,9.7608,9.7553,23.0245]
[1672557747355,40.0,9.7606,9.7553,23.0245]
[1672557748107,40.0,9.761,9.7553,23.0245]
[1672557756286,40.0,9.7608,9.7553,23.0245]
[1672557756503,40.0,9.7606,9.7553,23.0245]
[1672557756715,40.0,9.7606,9.7501,307.9]
[1672557756716,96.93,9.7605,9.7501,307.9]
[1672557756928,40.0,9.7604,9.7501,307.9]
[1672557757140,40.0,9.7602,9.7482,307.9]
[1672557757352,40.0,9.76,9.7484,307.9]
[1672557757677,40.0,9.7598,9.7486,307.9]
[1672557757986,40.0,9.7596,9.7488,307.9]
[1672557758173,40.0,9.7596,9.7427,70.2061]
[1672557758174,40.0,9.7594,9.749,307.9]
[1672557758383,96.94,9.7593,9.7491,384.92]
[1672557758592,40.0,9.7592,9.7491,307.9]
[1672557758806,40.0,9.759,9.7491,307.9]
[1672557759018,40.0,9.7588,9.7491,307.9]
[1672557759244,20.0,9.7587,9.7491,307.9]
[1672557759441,40.0,9.7586,9.7484,40.0]
[1672557759770,40.0,9.7584,9.7487,40.0]
[1672557759961,20.0,9.7583,9.7489,307.9]
[1672557760166,20.0,9.7583,9.7491,347.9]
[1672557760386,20.0,9.7584,9.7493,307.9]
[1672557760592,20.0,9.7584,9.7496,40.0]
[1672557760810,20.0,9.7584,9.7498,307.9]
[1672557761033,20.0,9.7584,9.7501,40.0]
[1672557761672,40.0,9.7583,9.7501,40.0]
[1672557761876,20.0,9.7582,9.7501,40.0]
[1672557762193,20.0,9.7582,9.7501,347.9]
[1672557762609,40.0,9.7583,9.7501,347.9]
[1672557762825,20.0,9.7582,9.7501,347.9]
[1672557763034,20.0,9.7584,9.7498,347.9]
[1672557764306,20.0,9.7584,9.7501,40.0]
[1672557764515,20.0,9.7584,9.7503,347.9]
[1672557764709,20.0,9.7584,9.7506,40.0]
[1672557764920,20.0,9.7584,9.7508,307.9]
[1672557765661,40.0,9.7583,9.7508,307.9]
[1672557765869,40.0,9.7583,9.7463,109.0066]
[1672557765870,40.0,9.7583,9.7493,40.0]
[1672557766091,20.0,9.7582,9.7493,40.0]
[1672557766306,20.0,9.7582,9.7491,424.92]
[1672557766828,40.0,9.7583,9.7491,384.92]
[1672557767041,20.0,9.7582,9.7491,384.92]
[1672557767255,40.0,9.7581,9.7491,384.92]
[1672557767565,40.0,9.7579,9.7491,384.92]
[1672557767773,40.0,9.7579,9.7467,40.0]
[1672557767969,40.0,9.7577,9.747,40.0]
[1672557768300,40.0,9.7575,9.7473,40.0]
[1672557768492,40.0,9.7573,9.7475,307.9]
[1672557768699,20.0,9.7572,9.7477,347.9]
[1672557768926,20.0,9.7572,9.748,40.0]
[1672557769150,40.0,9.7571,9.7482,307.9]
[1672557769329,20.0,9.757,9.7484,307.9]
[1672557769541,20.0,9.7572,9.7487,40.0]
[1672557769747,20.0,9.7572,9.7489,307.9]
[1672557769964,40.0,9.7572,9.7491,307.9]
[1672557770280,20.0,9.7571,9.7494,40.0]
[1672557770700,20.0,9.7573,9.7495,307.9]
[1672557770910,20.0,9.7573,9.7496,40.0]
[1672557771237,40.0,9.7572,9.7498,307.9]
[1672557771435,20.0,9.7571,9.7498,307.9]
[1672557772081,20.0,9.7571,9.7485,307.9]
[1672557772402,20.0,9.7571,9.7487,307.9]
[1672557772609,20.0,9.7571,9.7489,307.9]
[1672557772801,20.0,9.7571,9.7488,77.02]
[1672557772802,20.0,9.7571,9.7491,307.9]
[1672557773035,20.0,9.7571,9.7492,77.02]
[1672557774100,20.0,9.7571,9.7488,307.9]
[1672557774312,20.0,9.7571,9.749,307.9]
[1672557774504,20.0,9.7571,9.7492,40.0]
[1672557774719,20.0,9.7571,9.7493,77.02]
[1672557775141,20.0,9.7571,9.7495,40.0]
[1672557775454,20.0,9.7573,9.7498,40.0]
[1672557775663,20.0,9.7573,9.7501,40.0]
[1672557775884,20.0,9.7573,9.7504,40.0]
[1672557776303,20.0,9.7573,9.7503,307.9]
[1672557776724,20.0,9.7573,9.7504,40.0]
[1672557776936,20.0,9.7573,9.7501,40.0]
[1672557777143,20.0,9.7573,9.7502,307.9]
[1672557777338,20.0,9.7573,9.7503,40.0]
[1672557778613,20.0,9.7573,9.7502,307.9]
[1672557779357,20.0,9.7573,9.7501,40.0]
[1672557779552,20.0,9.7573,9.7502,307.9]
[1672557780080,20.0,9.7573,9.7503,40.0]
[1672557780291,20.0,9.7573,9.7502,307.9]
[1672557780496,20.0,9.7573,9.7503,40.0]
[1672557780916,20.0,9.7573,9.7505,307.9]
[1672557781138,20.0,9.7573,9.7506,40.0]
[1672557781972,20.0,9.7573,9.7507,40.0]
[1672557782190,20.0,9.7573,9.7502,307.9]
[1672557782404,20.0,9.7573,9.7504,347.9]
[1672557783131,20.0,9.7573,9.7504,307.9]
[1672557783556,20.0,9.7573,9.7505,40.0]
[1672557783769,20.0,9.7573,9.7503,40.0]
[1672557784085,20.0,9.7573,9.7505,40.0]
[1672557786295,20.0,9.7573,9.7508,40.0]
[1672557786811,76.92,9.7616,9.751,40.0]
[1672557787023,76.9,9.7642,9.7512,307.9]
[1672557787237,55.5165637,9.7634,9.7514,307.9]
[1672557787449,40.0,9.7632,9.7517,40.0]
[1672557787665,40.0,9.763,9.752,40.0]
[1672557787976,40.0,9.7628,9.7523,40.0]
[1672557788182,40.0,9.7628,9.7526,40.0]
[1672557788395,76.91,9.7627,9.7528,307.9]
[1672557788591,40.0,9.7626,9.753,307.9]
[1672557788926,40.0,9.7624,9.7524,165.061]
[1672557789136,40.0,9.7622,9.753,165.061]
[1672557789343,40.0,9.762,9.7531,165.061]
[1672557789543,76.92,9.7619,9.7532,140.5543]
[1672557789751,40.0,9.7618,9.7532,140.5543]
[1672557790169,40.0,9.7618,9.7533,24.5537]
[1672557790914,76.92,9.7619,9.7535,40.0]
[1672557791131,40.0,9.762,9.7534,24.5537]
[1672557791662,40.0,9.762,9.7535,23.6638]
[1672557792172,40.0,9.762,9.7536,23.6638]
[1672557792504,76.91,9.7629,9.7536,23.6638]
[1672557792812,76.91,9.7631,9.7537,23.6638]
[1672557793027,40.0,9.7639,9.7538,307.9]
[1672557793341,40.0,9.7637,9.7538,307.9]
[1672557793655,40.0,9.7635,9.754,307.9]
[1672557793843,76.9,9.7634,9.754,307.9]
[1672557794055,76.9,9.7634,9.7542,307.9]
[1672557794265,40.0,9.7632,9.7542,307.9]
[1672557794689,76.91,9.7631,9.7542,307.9]
[1672557794910,40.0,9.763,9.7543,23.393]
[1672557795535,40.0,9.763,9.7544,23.393]
[1672557797006,40.0,9.763,9.7545,23.393]
[1672557797417,40.0,9.7628,9.7545,23.393]
[1672557797628,40.0,9.7628,9.7546,23.811]
[1672557798179,40.0,9.7628,9.7547,23.811]
[1672557798800,40.0,9.7626,9.7548,23.811]
[1672557799332,40.0,9.7624,9.7548,23.811]
[1672557799548,40.0,9.7622,9.7549,23.811]
[1672557800157,40.0,9.7622,9.755,23.811]
[1672557801839,104.87100449,9.7622,9.7499,77.01]
[1672557802047,40.0,9.762,9.7473,23.3846]
[1672557802258,96.92,9.7619,9.7474,77.03]
[1672557802570,108.73017078,9.7618,9.7474,77.03]
[1672557802776,40.0,9.7616,9.7475,307.9]
[1672557803008,96.92,9.7615,9.7477,307.9]
[1672557803215,40.0,9.7614,9.7479,307.9]
[1672557803424,40.0,9.7612,9.7482,40.0]
[1672557803625,40.0,9.761,9.7484,307.9]
[1672557803836,96.92,9.7609,9.7486,307.9]
[1672557804066,40.0,9.7608,9.7488,307.9]
[1672557804273,40.0,9.7606,9.749,307.9]
[1672557804594,40.0,9.7604,9.7492,307.9]
[1672557804796,40.0,9.7602,9.7494,307.9]
[1672557804995,96.93,9.7601,9.7494,307.9]
[1672557805236,40.0,9.76,9.7494,307.9]
[1672557805544,40.0,9.7598,9.7496,307.9]
[1672557805761,40.0,9.7596,9.7496,307.9]
[1672557805955,20.0,9.7595,9.7496,307.9]
[1672557806160,40.0,9.7594,9.7496,307.9]
[1672557806388,40.0,9.7592,9.7479,307.9]
[1672557806585,20.0,9.7591,9.7481,307.9]
[1672557806790,20.0,9.7591,9.748,117.03]
[1672557806791,20.0,9.7591,9.7484,40.0]
[1672557807003,20.0,9.7591,9.7487,40.0]
[1672557807322,40.0,9.7589,9.749,40.0]
[1672557807528,20.0,9.7588,9.7492,307.9]
[1672557807745,40.0,9.7587,9.7494,307.9]
[1672557807958,20.0,9.7586,9.7496,307.9]
[1672557808169,40.0,9.7585,9.7498,307.9]
[1672557808382,20.0,9.7584,9.75,307.9]
[1672557808697,20.0,9.7584,9.7502,307.9]
[1672557808900,40.0,9.7583,9.7504,307.9]
[1672557809095,40.0,9.7581,9.7506,307.9]
[1672557809308,20.0,9.758,9.7508,307.9]
[1672557809739,40.0,9.7579,9.7508,307.9]
[1672557809938,20.0,9.7578,9.7508,307.9]
[1672557810163,40.0,9.7577,9.7508,307.9]
[1672557810378,40.0,9.7575,9.7479,307.9]
[1672557810569,40.0,9.7573,9.7481,307.9]
[1672557810904,20.0,9.7572,9.7484,40.0]
[1672557811119,20.0,9.7572,9.7486,307.9]
[1672557811324,20.0,9.7572,9.7488,307.9]
[1672557811645,20.0,9.7572,9.749,307.9]
[1672557812282,40.0,9.7571,9.749,307.9]
[1672557812492,40.0,9.7569,9.7491,384.92]
[1672557812694,20.0,9.7568,9.7491,384.92]
[1672557813021,40.0,9.7567,9.7491,307.9]
[1672557813224,20.0,9.7566,9.7491,307.9]
[1672557813432,40.0,9.7565,9.7475,307.9]
[1672557813631,40.0,9.7563,9.7477,307.9]
[1672557813840,40.0,9.7563,9.7431,109.9205]
[1672557813841,20.0,9.7562,9.7479,307.9]
[1672557814054,20.0,9.7562,9.7481,307.9]
[1672557814288,20.0,9.7562,9.7483,307.9]
[1672557814468,20.0,9.7562,9.7485,307.9]
[1672557814696,20.0,9.7562,9.7487,307.9]
[1672557814887,20.0,9.7562,9.7489,307.9]
[1672557815103,20.0,9.7562,9.749,384.92]
[1672557816989,20.0,9.7565,9.749,384.92]
[1672557817639,40.0,9.7564,9.749,384.92]
[1672557817956,20.0,9.7563,9.749,384.92]
[1672557818691,40.0,9.7562,9.749,307.9]
[1672557818875,40.0,9.756,9.749,307.9]
[1672557819089,40.0,9.7558,9.749,307.9]
[1672557819525,40.0,9.7556,9.749,307.9]
[1672557819726,40.0,9.7556,9.7475,307.9]
[1672557819926,20.0,9.7555,9.7477,307.9]
[1672557820148,40.0,9.7554,9.7479,307.9]
[1672557820350,40.0,9.7552,9.748,77.03]
[1672557820565,20.0,9.7551,9.7435,190.7505]
[1672557820782,40.0,9.7549,9.7435,113.6905]
[1672557820981,40.0,9.7547,9.7436,113.6905]
[1672557821195,96.97,9.7546,9.7436,113.6905]
[1672557821392,40.0,9.7545,9.7436,113.6905]
[1672557821604,96.98,9.7544,9.7437,113.6905]
[1672557821825,40.0,9.7543,9.7437,113.6905]
[1672557822036,40.0,9.7541,9.7437,113.6905]
[1672557822359,40.0,9.7539,9.7438,113.6905]
[1672557822573,96.98,9.7538,9.7438,113.6905]
[1672557822764,40.0,9.7537,9.7439,119.33]
[1672557822982,40.0,9.7535,9.7439,119.33]
[1672557823187,96.98,9.7534,9.7439,119.33]
[1672557823405,40.0,9.7533,9.744,119.33]
[1672557823718,40.0,9.7531,9.7441,40.0]
[1672557824037,40.0,9.7529,9.7441,159.33]
[1672557824231,40.0,9.7527,9.7441,119.33]
[1672557824434,76.99,9.7526,9.7442,119.33]
[1672557824651,40.0,9.7525,9.7442,119.33]
[1672557824981,40.0,9.7525,9.7473,23.28791854]
[1672557825406,40.0,9.7527,9.7473,23.28791854]
[1672557826740,40.0,9.7529,9.7473,23.28791854]
[1672557826948,40.0,9.7531,9.7473,23.28791854]
[1672557828119,39.88089871,9.7531,9.7473,23.28791854]
[1672557828328,84.87100449,9.7534,9.7473,23.28791854]
[1672557828548,20.0,9.7532,9.7473,23.28791854]
[1672557828965,40.0,9.7531,9.7473,23.28791854]
[1672557829166,40.0,9.7529,9.7473,23.28791854]
[1672557829379,20.0,9.7532,9.7473,23.28791854]
[1672557829589,20.0,9.7533,9.7473,23.28791854]
[1672557832436,20.0,9.7533,9.7475,307.9]
[1672557832646,20.0,9.7562,9.7477,307.9]
[1672557832859,20.0,9.7562,9.748,40.0]
[1672557833057,20.0,9.7562,9.7482,307.9]